bitfinex-derivatives/quotes_BTCF0:USTF0_20250505
["timestamp","ask_amount","ask_price","bid_price","bid_amount"]
[1746411941244,0.5035527,94267.0,94266.0,0.2121535]
[1746411942639,0.0530395,94265.0,94259.0,0.0548]
[1746411942833,0.2121684,94260.0,94259.0,0.2669697]
[1746411943031,0.2121729,94258.0,94257.0,0.63817293]
[1746411943237,0.2121729,94258.0,94257.0,0.85034813]
[1746411943746,0.3242729,94258.0,94257.0,0.85034813]
[1746411943944,0.12,94260.0,94259.0,0.2121707]
[1746411944738,0.12,94260.0,94259.0,0.2686707]
[1746411945243,0.2121602,94264.0,94263.0,0.2121617]
[1746411945445,0.0588,94265.0,94264.0,0.2121594]
[1746411946747,0.2709572,94265.0,94264.0,0.2121594]
[1746411947547,0.0588,94265.0,94264.0,0.2121594]
[1746411949843,0.270959,94265.0,94262.0,0.04499]
[1746411950243,0.390959,94265.0,94262.0,0.04499]
[1746411950449,0.1788,94265.0,94262.0,0.04499]
[1746411950949,0.2318393,94265.0,94262.0,0.04499]
[1746411951653,0.2121617,94263.0,94262.0,0.04499]
[1746411952154,0.2121617,94263.0,94262.0,0.3119539]
[1746411953646,0.2121617,94263.0,94262.0,0.09979]
[1746411956757,0.2121617,94263.0,94262.0,0.46059]
[1746411958953,0.2121617,94263.0,94262.0,0.4156]
[1746411960246,0.2121617,94263.0,94262.0,0.3608]
[1746411961249,0.3321617,94263.0,94262.0,0.3608]
[1746411961549,0.2121729,94258.0,94257.0,0.27737293]
[1746411964659,0.2121729,94258.0,94257.0,0.48954813]
[1746411965552,0.2121729,94258.0,94257.0,0.27737293]
[1746411965744,0.1195,94260.0,94257.0,0.27737293]
[1746411965946,0.0565,94267.0,94264.0,0.2121594]
[1746411966155,0.3299549,94266.0,94265.0,0.0552]
[1746411966554,0.3299549,94266.0,94265.0,0.1141]
[1746411969962,0.1178,94266.0,94265.0,0.3262572]
[1746411970259,0.3299549,94266.0,94265.0,0.1141]
[1746411970461,0.1178,94266.0,94265.0,0.1141]
[1746411970656,0.1178,94266.0,94265.0,0.3262572]
[1746411971053,0.00812943,94274.0,94273.0,0.2121392]
[1746411971361,0.2681017,94290.0,94285.0,0.2121102]
[1746411971556,0.1753,94290.0,94288.0,0.3608]
[1746411971760,0.18843971,94290.0,94289.0,0.0598]
[1746411972154,0.30843971,94290.0,94289.0,0.2719032]
[1746411972870,0.3165702,94290.0,94289.0,0.2719032]
[1746411973760,0.5286711,94290.0,94289.0,0.0598]
[1746411973960,0.5286711,94290.0,94289.0,0.04919]
[1746411974461,0.3165702,94290.0,94289.0,0.04919]
[1746411975377,0.3165702,94290.0,94289.0,0.2612932]
[1746411975568,0.12813049,94290.0,94289.0,0.2612932]
[1746411975769,0.12813049,94290.0,94289.0,0.4267492]
[1746411975965,0.12813049,94290.0,94289.0,0.4865492]
[1746411977279,0.00813049,94290.0,94289.0,0.4865492]
[1746411977573,0.001,94296.0,94295.0,0.2120897]
[1746411978168,0.001,94296.0,94295.0,0.2714897]
[1746411980066,0.121,94296.0,94295.0,0.2714897]
[1746411980878,0.12887786,94296.0,94295.0,0.2714897]
[1746411985877,0.12887786,94296.0,94294.0,0.63658154]
[1746411986075,0.1679,94295.0,94294.0,0.84867344]
[1746411986270,0.3799897,94295.0,94294.0,0.63658154]
[1746411986470,0.1679,94295.0,94294.0,0.84867344]
[1746411987081,0.2879,94295.0,94294.0,0.84867344]
[1746411987283,0.4999897,94295.0,94294.0,0.63658154]
[1746411987575,0.5999897,94295.0,94294.0,0.27578154]
[1746411988584,0.4999897,94295.0,94294.0,0.27578154]
[1746411992378,0.2121106,94286.0,94282.0,0.2121186]
[1746411992579,0.3244124,94285.0,94280.0,0.3608]
[1746411992780,0.0553,94284.0,94283.0,0.2121167]
[1746411993182,0.2876,94284.0,94283.0,0.2121167]
[1746411994988,0.12,94284.0,94283.0,0.2121167]
[1746411995182,0.12,94284.0,94283.0,0.3181807]
[1746411997188,0.1718,94292.0,94291.0,0.2120987]
[1746411997489,0.1718,94292.0,94291.0,0.5728987]
[1746411998084,0.12,94292.0,94291.0,0.5728987]
[1746412002492,0.12,94292.0,94291.0,0.3608]
[1746412002794,0.12,94292.0,94291.0,0.5728987]
[1746412006201,0.3320964,94292.0,94291.0,0.3608]
[1746412006500,0.2328,94292.0,94291.0,0.5728987]
[1746412007197,0.2328,94292.0,94285.0,0.27578154]
[1746412007394,0.2121099,94286.0,94285.0,0.27578154]
[1746412008198,0.3321099,94286.0,94285.0,0.27578154]
[1746412008401,0.4449099,94286.0,94285.0,0.27578154]
[1746412010096,0.2121212,94281.0,94278.0,0.2121277]
[1746412010400,0.2121212,94281.0,94279.0,0.212125]
[1746412011101,0.3321212,94281.0,94279.0,0.212125]
[1746412011501,0.3896212,94281.0,94279.0,0.212125]
[1746412011696,0.3896212,94281.0,94280.0,0.5729234]
[1746412012196,0.1775,94281.0,94280.0,0.5729234]
[1746412013205,0.1775,94281.0,94280.0,0.6867234]
[1746412013996,0.12,94281.0,94280.0,0.6867234]
[1746412020813,0.12,94281.0,94280.0,0.6856234]
[1746412021711,0.12,94281.0,94280.0,0.3597]
[1746412022014,0.3321212,94281.0,94280.0,0.3597]
[1746412022706,0.3321212,94281.0,94280.0,0.5718234]
[1746412022906,0.4487212,94281.0,94280.0,0.5718234]
[1746412023512,0.2366,94281.0,94280.0,0.5718234]
[1746412024413,0.4487212,94281.0,94280.0,0.3597]
[1746412025816,0.2121414,94272.0,94258.0,0.27578154]
[1746412026114,0.0530327,94277.0,94273.0,0.2121384]
[1746412026115,0.2121361,94275.0,94273.0,0.2121384]
[1746412026330,0.0573,94274.0,94273.0,0.2121384]
[1746412026517,0.1693,94274.0,94273.0,0.2121384]
[1746412027116,0.2893,94274.0,94273.0,0.2121384]
[1746412027718,0.2121414,94272.0,94250.0,0.088392]
[1746412027917,0.2121414,94272.0,94262.0,0.0530408]
[1746412028118,0.2121414,94272.0,94261.0,0.0568]
[1746412028419,0.0530406,94263.0,94258.0,0.27578154]
[1746412028624,0.2121686,94260.0,94258.0,0.27578154]
[1746412028812,0.055,94259.0,94258.0,0.48795444]
[1746412029005,0.12474672,94259.0,94258.0,0.54475444]
[1746412029210,0.45691742,94259.0,94258.0,0.33258154]
[1746412030221,0.45691742,94259.0,94258.0,0.27578154]
[1746412030520,0.45691742,94259.0,94257.0,0.00159139]
[1746412030718,0.45691742,94259.0,94258.0,0.0552]
[1746412032114,0.24474672,94259.0,94258.0,0.2673729]
[1746412033319,0.232,94259.0,94258.0,0.2673729]
[1746412033715,0.12,94259.0,94258.0,0.2673729]
[1746412034114,0.0548,94265.0,94263.0,0.2121602]
[1746412034314,0.07176,94279.0,94264.0,0.4764]
[1746412034520,0.1726,94278.0,94277.0,0.212128]
[1746412034720,0.18515003,94278.0,94277.0,0.212128]
[1746412034922,0.18515003,94278.0,94275.0,0.6327339]
[1746412035118,0.30515003,94278.0,94276.0,0.2121314]
[1746412035316,0.30515003,94278.0,94275.0,0.632734]
[1746412035518,0.51727803,94278.0,94275.0,0.632734]
[1746412036122,0.30515003,94278.0,94275.0,0.4736335]
[1746412036315,0.30515003,94278.0,94277.0,0.2121302]
[1746412036916,0.136,94278.0,94277.0,0.2121302]
[1746412037723,0.135,94278.0,94277.0,0.2131302]
[1746412038322,0.2482,94278.0,94277.0,0.2131302]
[1746412039414,0.2111324,94276.0,94275.0,0.3608]
[1746412039619,0.2492,94278.0,94276.0,0.2121312]
[1746412040230,0.2492,94278.0,94277.0,0.2121302]
[1746412040429,0.2492,94278.0,94277.0,0.2131302]
[1746412041128,0.2492,94278.0,94277.0,0.2121302]
[1746412042432,0.136,94278.0,94277.0,0.2121302]
[1746412042627,0.137,94278.0,94277.0,0.2722302]
[1746412043533,0.136,94278.0,94277.0,0.2712302]
[1746412044129,0.12,94278.0,94277.0,0.2702302]
[1746412044437,0.137,94278.0,94277.0,0.54801174]
[1746412045131,0.017,94278.0,94277.0,2.04801174]
[1746412045927,0.21212,94282.0,94281.0,0.2121212]
[1746412046138,0.21212,94282.0,94280.0,0.3608]
[1746412046139,0.2121212,94281.0,94280.0,0.3608]
[1746412046432,0.3840212,94281.0,94280.0,0.3608]
[1746412046921,0.2121279,94278.0,94277.0,0.001]
[1746412047127,0.2121684,94260.0,94259.0,0.3608]
[1746412047726,0.2101684,94260.0,94259.0,0.3608]
[1746412048125,0.3301684,94260.0,94259.0,0.3608]
[1746412048325,0.4434684,94260.0,94259.0,0.3608]
[1746412048926,0.4584684,94260.0,94259.0,0.3618]
[1746412049535,0.2483,94260.0,94259.0,0.3618]
[1746412050627,0.2483,94260.0,94259.0,0.5739707]
[1746412051438,0.2483,94260.0,94259.0,0.2131707]
[1746412051630,0.2483,94260.0,94259.0,0.001]
[1746412051935,0.4604684,94260.0,94259.0,0.001]
[1746412052335,0.4604684,94260.0,94259.0,0.2131707]
[1746412052336,0.2483,94260.0,94259.0,0.2131707]
[1746412053338,0.26087678,94260.0,94259.0,0.2131707]
[1746412053538,0.47304518,94260.0,94259.0,0.001]
[1746412054438,0.57304518,94260.0,94259.0,0.001]
[1746412055032,0.26087678,94260.0,94259.0,0.001]
[1746412055340,0.26087678,94260.0,94259.0,0.2131707]
[1746412055544,0.47304518,94260.0,94259.0,0.001]
[1746412056040,0.26087678,94260.0,94259.0,0.2131707]
[1746412056238,0.2483,94260.0,94259.0,0.2131707]
[1746412057241,0.47294441,94260.0,94259.0,0.001]
[1746412062446,0.87766611,94260.0,94239.0,0.2122149]
[1746412062742,0.2122075,94243.0,94241.0,0.3608]
[1746412062943,0.2122075,94243.0,94242.0,0.0538]
[1746412063329,0.0530503,94246.0,94242.0,0.266008]
[1746412063535,0.2122048,94244.0,94242.0,0.266008]
[1746412064343,0.2122029,94245.0,94243.0,0.212206]
[1746412064638,0.2122029,94245.0,94244.0,0.2695044]
[1746412064843,0.2122029,94245.0,94244.0,0.0573]
[1746412065042,0.22008235,94245.0,94244.0,0.0573]
[1746412065246,0.34008235,94245.0,94244.0,0.0573]
[1746412065743,0.35208235,94245.0,94244.0,0.0573]
[1746412066333,0.13987945,94245.0,94244.0,0.2695044]
[1746412066947,0.13728807,94245.0,94244.0,0.2695044]
[1746412067137,0.01728807,94245.0,94244.0,0.3905044]
[1746412068232,0.01712455,94245.0,94244.0,0.2705044]
[1746412075044,0.01712455,94245.0,94244.0,0.3766124]
[1746412075253,0.01712455,94245.0,94244.0,0.4966124]
[1746412076352,0.01712455,94245.0,94244.0,1.9966124]
[1746412077453,0.01712455,94245.0,94244.0,2.27239394]
[1746412083155,0.01712455,94245.0,94244.0,2.16628594]
[1746412085555,0.3608,94290.0,94274.0,0.2121369]
[1746412085758,0.0576,94275.0,94274.0,0.2121369]
[1746412086649,0.0766,94275.0,94274.0,0.2131369]
[1746412087457,0.08436461,94275.0,94274.0,0.2131369]
[1746412087751,0.02826461,94275.0,94274.0,0.2131369]
[1746412087943,0.02826461,94275.0,94274.0,0.2708369]
[1746412088351,0.02826461,94275.0,94274.0,0.3277369]
[1746412088950,0.00926461,94275.0,94274.0,0.3267369]
[1746412090251,0.00926461,94275.0,94274.0,0.4467369]
[1746412091356,0.00926461,94275.0,94274.0,1.8267369]
[1746412092055,0.01726461,94275.0,94274.0,1.8277369]
[1746412092252,0.01726461,94275.0,94274.0,2.10351844]
[1746412095160,0.01626461,94275.0,94274.0,2.10351844]
[1746412095856,0.00926461,94275.0,94274.0,2.10351844]
[1746412096059,0.01626461,94275.0,94274.0,2.10351844]
[1746412098060,0.00926461,94275.0,94274.0,2.10251844]
[1746412098265,0.01726461,94275.0,94274.0,2.10351844]
[1746412101166,0.001,94296.0,94294.0,0.2120919]
[1746412101167,0.1731,94295.0,94294.0,0.2120919]
[1746412101469,0.1731,94295.0,94294.0,0.9336919]
[1746412102060,0.1731,94295.0,94294.0,2.4336919]
[1746412102865,0.1891,94295.0,94294.0,2.4356919]
[1746412103465,0.1891,94295.0,94294.0,0.5748919]
[1746412103866,0.1811,94295.0,94294.0,0.5738919]
[1746412104061,0.1881,94295.0,94294.0,0.5738919]
[1746412104366,0.1881,94295.0,94273.0,0.3608]
[1746412104367,0.053023,94294.0,94273.0,0.3608]
[1746412104570,0.449192,94283.0,94273.0,0.3608]
[1746412104767,0.3608,94274.0,94260.0,0.07124]
[1746412104967,0.2121729,94258.0,94253.0,0.3608]
[1746412105164,0.2121686,94260.0,94259.0,0.212168]
[1746412105464,0.2121721,94259.0,94257.0,0.21376459]
[1746412105670,0.0542,94259.0,94258.0,0.2121729]
[1746412106263,0.1732,94259.0,94258.0,0.2121729]
[1746412106770,0.1792,94259.0,94258.0,0.2121729]
[1746412107368,0.1732,94259.0,94258.0,0.2121729]
[1746412107569,0.1802,94259.0,94258.0,0.2121729]
[1746412108079,0.19232746,94259.0,94258.0,0.2121729]
[1746412108263,0.19132746,94259.0,94258.0,0.2121729]
[1746412108464,0.19232746,94259.0,94258.0,0.2121729]
[1746412109272,0.18932746,94259.0,94258.0,0.2121729]
[1746412109667,0.1742,94259.0,94258.0,0.2121729]
[1746412109863,0.1742,94259.0,94258.0,0.2091729]
[1746412110063,0.0542,94259.0,94258.0,0.2091729]
[1746412110770,0.01184059,94277.0,94275.0,0.2121347]
[1746412110965,0.0547,94280.0,94268.0,0.0530376]
[1746412111167,0.0547,94280.0,94279.0,0.2121257]
[1746412112075,0.1747,94280.0,94279.0,0.2121257]
[1746412112573,0.1747,94280.0,94279.0,0.5729257]
[1746412112770,0.12,94280.0,94279.0,0.5729257]
[1746412113269,0.0545,94284.0,94283.0,0.2121167]
[1746412113868,0.00900662,94296.0,94284.0,0.0530285]
[1746412114184,0.0545,94295.0,94294.0,0.2120919]
[1746412114478,0.0545,94295.0,94294.0,0.5728919]
[1746412114773,0.00900662,94296.0,94295.0,0.2120897]
[1746412114977,0.00900662,94296.0,94295.0,0.3270897]
[1746412115173,0.00900662,94296.0,94295.0,1.7680897]
[1746412119073,0.00900662,94296.0,94295.0,1.8256897]
[1746412120575,0.00900662,94296.0,94295.0,2.10147124]
[1746412125478,0.00900662,94296.0,94295.0,2.20751924]
[1746412126680,0.00900662,94296.0,94295.0,2.26641924]
[1746412130684,2e-08,94296.0,94295.0,2.26641924]
[1746412130990,0.0591,94307.0,94306.0,0.2120649]
[1746412131188,0.0591,94307.0,94306.0,0.5728649]
[1746412131590,0.0591,94307.0,94306.0,2.0728649]
[1746412132884,0.06708042,94307.0,94306.0,2.0728649]
[1746412133692,0.31708042,94307.0,94306.0,0.3608]
[1746412133894,1.20221642,94307.0,94278.0,0.27578154]
[1746412134187,0.2121186,94283.0,94278.0,0.27578154]
[1746412134388,0.169,94282.0,94281.0,0.2121212]
[1746412134784,0.169,94282.0,94277.0,0.3608]
[1746412134986,0.169,94282.0,94281.0,0.2121212]
[1746412135184,0.289,94282.0,94281.0,0.2121212]
[1746412135888,0.2121279,94278.0,94277.0,0.3608]
[1746412136089,0.3321279,94278.0,94277.0,0.3608]
[1746412136480,0.12,94278.0,94277.0,0.5729302]
[1746412137290,0.124,94278.0,94277.0,0.5729302]
[1746412139390,0.12,94278.0,94277.0,0.5629302]
[1746412140097,0.1115,94282.0,94281.0,0.2121212]
[1746412142997,0.3236189,94282.0,94281.0,0.2121212]
[1746412143496,0.053031,94280.0,94277.0,0.3508]
[1746412143705,0.2121279,94278.0,94277.0,0.3508]
[1746412144096,0.4444279,94278.0,94277.0,0.3508]
[1746412145504,0.4444279,94278.0,94277.0,0.5629302]
[1746412145796,0.2323,94278.0,94277.0,0.5629302]
[1746412152103,0.1123,94278.0,94277.0,0.5629302]
[1746412152608,0.16173752,94285.0,94284.0,0.2121144]
[1746412155606,0.16173752,94285.0,94284.0,0.54439594]
[1746412155911,0.16173752,94285.0,94284.0,0.60159594]
[1746412156109,0.16173752,94285.0,94284.0,0.66089594]
[1746412156601,0.16173752,94285.0,94284.0,2.16089594]
[1746412162212,0.16173752,94285.0,94284.0,2.24097594]
[1746412162420,0.16173752,94285.0,94284.0,2.12727594]
[1746412165414,0.04385071,94291.0,94288.0,0.053026]
[1746412165615,0.10005071,94291.0,94288.0,0.053026]
[1746412165815,0.056,94290.0,94289.0,0.2121032]
[1746412166006,0.056,94290.0,94289.0,1.7121032]
[1746412166217,0.2322,94290.0,94289.0,1.7121032]
[1746412166406,0.2322,94290.0,94289.0,1.7716032]
[1746412167114,0.1122,94290.0,94289.0,1.8875032]
[1746412169118,0.15605071,94290.0,94289.0,1.8875032]
[1746412172607,0.15605071,94290.0,94289.0,1.7716032]
[1746412172812,0.37170074,94290.0,94289.0,1.7716032]
[1746412178123,0.37170074,94290.0,94289.0,2.1324032]
[1746412183929,0.37170074,94290.0,94289.0,1.9203]
[1746412184129,0.49170074,94290.0,94289.0,1.9203]
[1746412184635,0.49170074,94290.0,94289.0,2.1324032]
[1746412185237,0.37170074,94290.0,94289.0,2.1324032]
[1746412186727,0.37170074,94290.0,94289.0,1.86175475]
[1746412188837,0.09112212,94290.0,94289.0,1.86175475]
[1746412189042,0.24253364,94299.0,94298.0,0.2120829]
[1746412189244,0.09100033,94302.0,94301.0,0.2120762]
[1746412189540,0.09100033,94302.0,94301.0,0.2913962]
[1746412189733,0.09100033,94302.0,94301.0,1.7913962]
[1746412190237,0.09100033,94302.0,94301.0,1.9070962]
[1746412190441,0.1162,94322.0,94321.0,0.2120312]
[1746412191139,0.2362,94322.0,94321.0,0.2120312]
[1746412191338,0.12,94322.0,94321.0,0.2120312]
[1746412191543,0.0435646,94322.0,94321.0,0.59671274]
[1746412191744,0.1141,94335.0,94334.0,0.212002]
[1746412191938,0.1141,94335.0,94334.0,0.933602]
[1746412192244,0.1141,94335.0,94334.0,2.433602]
[1746412193442,0.0593,94344.0,94343.0,0.2119818]
[1746412193646,0.0593,94344.0,94343.0,0.5727818]
[1746412194239,0.1793,94344.0,94343.0,0.5727818]
[1746412196642,0.2915,94344.0,94343.0,0.5727818]
[1746412200849,0.1767,94344.0,94343.0,0.5727818]
[1746412201465,0.0848819,94344.0,94343.0,0.5727818]
[1746412201945,0.3608,94382.0,94350.0,0.0529911]
[1746412202145,0.0551,94372.0,94354.0,0.572757]
[1746412202543,0.0551,94372.0,94354.0,2.072757]
[1746412203655,0.0551,94372.0,94354.0,2.07203097]
[1746412203854,0.07703223,94355.0,94354.0,2.07203097]
[1746412204152,3e-08,94355.0,94354.0,2.08347192]
[1746412204857,3e-08,94356.0,94355.0,0.2119548]
[1746412205054,3e-08,94356.0,94355.0,0.3199548]
[1746412205357,0.1067,94373.0,94372.0,0.2119166]
[1746412205358,0.0537,94373.0,94372.0,0.2119166]
[1746412205548,0.0537,94373.0,94372.0,0.5727166]
[1746412206048,0.0537,94373.0,94372.0,0.6807166]
[1746412206253,0.12,94376.0,94375.0,0.2119099]
[1746412206657,0.0460221,94376.0,94375.0,0.2119099]
[1746412206853,0.0015,94380.0,94379.0,0.2119009]
[1746412207253,0.21592622,94386.0,94382.0,0.0529731]
[1746412207556,0.14098122,94386.0,94385.0,0.5726874]
[1746412207752,0.14098122,94386.0,94385.0,0.6485674]
[1746412208056,0.10664422,94386.0,94385.0,0.6485674]
[1746412208451,0.06858712,94386.0,94385.0,0.7039674]
[1746412208651,0.03257852,94386.0,94385.0,0.7569674]
[1746412209052,0.04046813,94386.0,94385.0,0.7015674]
[1746412209347,0.16046813,94386.0,94385.0,0.7015674]
[1746412209758,0.18278961,94386.0,94385.0,0.7015674]
[1746412210258,0.23878961,94386.0,94385.0,0.7015674]
[1746412214058,0.23878961,94386.0,94385.0,0.6256874]
[1746412214358,0.23878961,94386.0,94385.0,0.5726874]
[1746412217156,0.29268961,94386.0,94385.0,0.5726874]
[1746412219162,0.29268961,94386.0,94385.0,0.6282874]
[1746412219762,0.23878961,94386.0,94385.0,0.6282874]
[1746412219957,0.18278961,94386.0,94385.0,0.6282874]
[1746412220561,0.12788961,94386.0,94385.0,0.6282874]
[1746412221559,0.1281208,94386.0,94385.0,0.6282874]
[1746412223165,0.0569181,94386.0,94385.0,0.6282874]
[1746412223861,0.10716795,94394.0,94393.0,0.2118695]
[1746412224061,0.10716795,94394.0,94393.0,0.5726695]
[1746412224366,0.22716795,94394.0,94393.0,0.5726695]
[1746412224853,0.22716795,94394.0,94393.0,0.6832695]
[1746412225762,0.23514284,94394.0,94393.0,0.6832695]
[1746412227162,0.23514284,94394.0,94393.0,0.95905104]
[1746412227661,0.23514284,94394.0,94393.0,2.34845104]
[1746412227861,0.23514284,94394.0,94393.0,0.84845104]
[1746412228662,0.28884284,94394.0,94393.0,0.84845104]
[1746412229772,0.28884284,94394.0,94393.0,0.90085104]
[1746412229984,0.28884284,94394.0,94393.0,0.95485104]
[1746412232771,0.28884284,94394.0,94393.0,1.02829104]
[1746412232969,0.31563483,94394.0,94393.0,1.02829104]
[1746412233175,0.31563483,94394.0,94393.0,1.01835212]
[1746412235976,0.18167489,94394.0,94393.0,1.01835212]
[1746412236476,0.18167489,94394.0,94393.0,0.94491212]
[1746412236671,0.18167489,94394.0,94393.0,1.01835212]
[1746412238162,0.18754392,94403.0,94402.0,0.2118493]
[1746412238368,0.2147037,94411.0,94410.0,0.2118313]
[1746412238369,0.1717709,94411.0,94410.0,0.2118313]
[1746412238562,0.04059176,94411.0,94410.0,0.6460713]
[1746412238771,0.04059176,94411.0,94410.0,2.25199129]
[1746412239172,0.0015,94415.0,94414.0,0.2118223]
[1746412239472,0.0015,94415.0,94414.0,0.58441528]
[1746412239872,0.0015,94415.0,94414.0,0.5726223]
[1746412240174,0.1215,94415.0,94414.0,0.5726223]
[1746412241073,0.12937511,94415.0,94414.0,0.5726223]
[1746412241373,0.45189521,94415.0,94414.0,0.2118223]
[1746412241575,0.50869521,94415.0,94414.0,0.2118223]
[1746412241870,0.29687511,94415.0,94414.0,0.2118223]
[1746412242480,0.2118358,94410.0,94407.0,0.0529595]
[1746412242675,0.3225358,94409.0,94408.0,0.2118358]
[1746412242873,0.1107,94409.0,94408.0,0.2118358]
[1746412243074,0.2307,94409.0,94408.0,0.2118358]
[1746412243872,0.2307,94409.0,94386.0,0.3608]
[1746412243873,0.586624,94409.0,94386.0,0.3608]
[1746412244077,0.2118829,94387.0,94386.0,0.3608]
[1746412244377,0.0529708,94387.0,94386.0,0.2118812]
[1746412244581,0.3178352,94387.0,94386.0,0.2118812]
[1746412245081,0.2118955,94384.0,94383.0,0.2118915]
[1746412245476,0.5678475,94384.0,94383.0,0.2118915]
[1746412245782,0.355952,94384.0,94383.0,0.2118915]
[1746412246075,0.1093,94387.0,94386.0,0.2118852]
[1746412246278,0.056,94387.0,94386.0,0.2118852]
[1746412246780,0.056,94387.0,94386.0,0.5726852]
[1746412247283,0.176,94387.0,94386.0,0.5726852]
[1746412252580,0.2119009,94383.0,94382.0,0.2118878]
[1746412252885,0.176,94387.0,94386.0,0.2118852]
[1746412253075,0.3878829,94387.0,94386.0,0.5726852]
[1746412253476,0.3878829,94387.0,94386.0,0.2118852]
[1746412253681,0.2119054,94377.0,94376.0,0.5727076]
[1746412253880,0.0529725,94384.0,94376.0,0.5727076]
[1746412253881,0.176,94387.0,94386.0,0.2118852]
[1746412254276,0.281948,94387.0,94386.0,0.2118852]
[1746412254579,0.33758774,94387.0,94386.0,0.2118852]
[1746412256777,0.54947064,94387.0,94386.0,0.2118852]
[1746412257181,0.3878829,94387.0,94386.0,0.2118852]
[1746412257888,0.2118874,94385.0,94384.0,0.3608]
[1746412258083,0.3318874,94385.0,94384.0,0.5726897]
[1746412258892,0.12,94385.0,94384.0,0.5726897]
[1746412261389,0.12,94385.0,94384.0,0.6277897]
[1746412261589,0.12,94385.0,94384.0,0.6832897]
[1746412265095,0.243845,94394.0,94393.0,0.2118695]
[1746412265294,0.243845,94394.0,94393.0,0.5726695]
[1746412265888,0.243845,94394.0,94393.0,0.6781695]
[1746412266084,0.363845,94394.0,94393.0,0.6781695]
[1746412267095,0.363845,94394.0,94393.0,0.6259695]
[1746412267398,0.5757122,94394.0,94393.0,0.2118695]
[1746412267594,0.363845,94394.0,94393.0,0.2118695]
[1746412268597,0.1753,94394.0,94393.0,0.2118695]
[1746412272504,0.1753,94394.0,94393.0,0.5726695]
[1746412272695,0.1753,94394.0,94393.0,0.6285695]
[1746412273693,0.12,94394.0,94393.0,0.6285695]
[1746412282109,0.01227605,94416.0,94393.0,0.4167]
[1746412282305,0.48130754,94405.0,94404.0,0.5726448]
[1746412283211,0.60130754,94405.0,94404.0,0.5726448]
[1746412283503,0.38946504,94405.0,94404.0,0.5726448]
[1746412283712,0.44516504,94405.0,94404.0,0.6244448]
[1746412284499,0.38946504,94405.0,94404.0,0.6244448]
[1746412284705,0.38946504,94405.0,94404.0,0.63583822]
[1746412285213,0.26946504,94405.0,94404.0,2.13583822]
[1746412286902,0.18733584,94405.0,94404.0,2.24176622]
[1746412287102,0.15683234,94405.0,94404.0,2.13583822]
[1746412287301,4e-08,94405.0,94404.0,2.13583822]
[1746412287510,4e-08,94405.0,94404.0,2.24176622]
[1746412288112,5e-08,94415.0,94414.0,0.2118223]
[1746412288309,0.13249955,94419.0,94418.0,0.2118134]
[1746412288512,0.13249955,94419.0,94418.0,0.5726134]
[1746412288711,0.13249955,94419.0,94418.0,2.0726134]
[1746412289308,0.13249955,94419.0,94418.0,2.1293134]
[1746412289816,0.0519,94429.0,94428.0,0.2117909]
[1746412290022,0.0519,94429.0,94428.0,0.5725909]
[1746412290313,0.1719,94429.0,94428.0,0.5725909]
[1746412290706,0.1719,94429.0,94428.0,0.6821909]
[1746412292119,0.227,94429.0,94428.0,0.6821909]
[1746412293019,0.23507967,94429.0,94428.0,0.6821909]
[1746412293317,0.11507967,94429.0,94428.0,0.6821909]
[1746412295120,0.05997967,94429.0,94428.0,0.6821909]
[1746412302925,0.11597967,94429.0,94428.0,0.6821909]
[1746412303123,0.23597967,94429.0,94428.0,0.6821909]
[1746412305520,0.23597967,94429.0,94428.0,0.6254909]
[1746412306726,0.23597967,94429.0,94428.0,0.5725909]
[1746412307330,0.17997967,94429.0,94428.0,0.5725909]
[1746412307923,0.17997967,94429.0,94428.0,0.6818909]
[1746412309018,0.2118111,94419.0,94418.0,0.3608]
[1746412309222,0.3318111,94419.0,94418.0,0.3608]
[1746412309430,0.34321012,94419.0,94418.0,0.3608]
[1746412309628,0.2118336,94409.0,94408.0,0.3608]
[1746412310122,0.4377576,94409.0,94408.0,0.3608]
[1746412310324,0.2118583,94398.0,94397.0,0.00158903]
[1746412311126,0.4424583,94398.0,94397.0,0.21344953]
[1746412311828,0.4424583,94398.0,94397.0,0.00158903]
[1746412312022,0.2118725,94394.0,94387.0,0.3608]
[1746412312331,0.2118717,94392.0,94391.0,0.2118717]
[1746412312733,0.1106,94392.0,94391.0,0.2118717]
[1746412313132,0.2306,94392.0,94391.0,0.2118717]
[1746412314222,0.2306,94392.0,94391.0,0.2674717]
[1746412314920,0.2306,94392.0,94391.0,0.2118717]
[1746412315127,0.2118807,94388.0,94387.0,0.625644]
[1746412315431,0.4424747,94392.0,94391.0,0.211874]
[1746412315632,0.1749,94392.0,94391.0,0.211874]
[1746412316034,0.3867717,94392.0,94391.0,0.211874]
[1746412316533,0.3867717,94392.0,94391.0,0.265274]
[1746412319233,0.1749,94392.0,94391.0,0.265274]
[1746412319732,0.3867717,94392.0,94391.0,0.211874]
[1746412320425,0.2648501,94390.0,94389.0,0.264847]
[1746412320734,0.2118807,94390.0,94389.0,0.264847]
[1746412321228,0.3318807,94390.0,94389.0,0.264847]
[1746412322233,0.12,94390.0,94389.0,0.264847]
[1746412323028,0.12,94390.0,94389.0,0.377647]
[1746412323231,0.2118675,94394.0,94393.0,0.2118672]
[1746412323426,0.2697675,94394.0,94393.0,0.2118672]
[1746412323627,0.0579,94394.0,94393.0,0.2118672]
[1746412323931,0.0579,94394.0,94393.0,0.2676672]
[1746412324232,0.1779,94394.0,94393.0,0.2676672]
[1746412327333,0.12,94394.0,94393.0,0.2676672]
[1746412329034,0.12,94394.0,94393.0,1.7676672]
[1746412330828,0.11841096,94394.0,94393.0,1.7676672]
[1746412331230,0.16147187,94406.0,94405.0,0.2118425]
[1746412331537,0.16147187,94406.0,94405.0,0.9334425]
[1746412332131,0.28147187,94406.0,94405.0,0.9334425]
[1746412333137,0.33687187,94406.0,94405.0,0.9334425]
[1746412333536,0.1754,94406.0,94405.0,0.9334425]
[1746412335839,0.12,94406.0,94405.0,0.9334425]
[1746412336134,0.21507469,94408.0,94407.0,0.2118381]
[1746412337337,0.21507469,94412.0,94411.0,0.2118291]
[1746412340740,0.21507469,94412.0,94411.0,1.7118291]
[1746412341141,0.0015,94415.0,94414.0,0.2118223]
[1746412341349,0.0015,94415.0,94414.0,0.5726223]
[1746412341942,0.0015,94415.0,94414.0,0.6312223]
[1746412342646,0.0015,94415.0,94414.0,2.1866223]
[1746412342848,1e-07,94415.0,94414.0,2.1866223]
[1746412347440,1e-07,94415.0,94414.0,2.46240384]
[1746412350840,0.0544001,94415.0,94414.0,2.46240384]
[1746412351148,0.1744001,94415.0,94414.0,2.46240384]
[1746412352548,0.001,94446.0,94440.0,0.211764]